[Event "Late-Titled-Tuesday-Blitz-July-09-2024"]
[Site "Chess.com"]
[Date "2024.07.09"]
[Round "4"]
[White "Crazy_girl99"]
[Black "Vladimir_Zakhartsov"]
[Result "0-1"]
[WhiteElo "2682"]
[BlackElo "2903"]
[TimeControl "180+1"]
[EndTime "14:39:23 PDT"]
[Termination "Vladimir_Zakhartsov won by checkmate"]

1. e4 {[%clk 0:03:00.9]} 1... c5 {[%clk 0:02:59.9]} 2. Nf3 {[%clk 0:03:00.7]}
2... d6 {[%clk 0:03:00]} 3. d4 {[%clk 0:03:00.6]} 3... Nf6 {[%clk 0:03:00.2]} 4.
Nc3 {[%clk 0:03:00.4]} 4... cxd4 {[%clk 0:03:00.4]} 5. Nxd4 {[%clk 0:03:00.7]}
5... g6 {[%clk 0:03:00.6]} 6. f3 {[%clk 0:02:58.9]} 6... h5 {[%clk 0:02:58.1]}
7. Bc4 {[%clk 0:02:56.7]} 7... Bg7 {[%clk 0:02:58.3]} 8. Be3 {[%clk 0:02:56.3]}
8... a6 {[%clk 0:02:58.5]} 9. Be2 {[%clk 0:02:52]} 9... b5 {[%clk 0:02:56.7]}
10. O-O {[%clk 0:02:51.3]} 10... Bb7 {[%clk 0:02:56.2]} 11. Qd2 {[%clk
0:02:50.8]} 11... Nbd7 {[%clk 0:02:53.2]} 12. a4 {[%clk 0:02:50.7]} 12... b4
{[%clk 0:02:53.2]} 13. Na2 {[%clk 0:02:51.4]} 13... a5 {[%clk 0:02:53.3]} 14. c3
{[%clk 0:02:52.1]} 14... bxc3 {[%clk 0:02:51.8]} 15. Nxc3 {[%clk 0:02:53]} 15...
O-O {[%clk 0:02:51.8]} 16. Bb5 {[%clk 0:02:53.2]} 16... Nc5 {[%clk 0:02:51.9]}
17. Rad1 {[%clk 0:02:49.3]} 17... Kh7 {[%clk 0:02:47.8]} 18. Bg5 {[%clk
0:02:41.4]} 18... Qc7 {[%clk 0:02:46.9]} 19. Kh1 {[%clk 0:02:39.7]} 19... Rad8
{[%clk 0:02:41.4]} 20. Rfe1 {[%clk 0:02:39]} 20... e5 {[%clk 0:02:37.6]} 21. Nc2
{[%clk 0:02:38.2]} 21... Ne6 {[%clk 0:02:37]} 22. Bh4 {[%clk 0:02:31.9]} 22...
Bh6 {[%clk 0:02:24.6]} 23. Qf2 {[%clk 0:02:29.9]} 23... g5 {[%clk 0:02:24.3]}
24. Bg3 {[%clk 0:02:26.9]} 24... h4 {[%clk 0:02:24.1]} 25. Bxh4 {[%clk
0:02:27.1]} 25... gxh4 {[%clk 0:02:22.8]} 26. Qxh4 {[%clk 0:02:28]} 26... Qe7
{[%clk 0:02:12.5]} 27. Ne3 {[%clk 0:02:27.3]} 27... Ng8 {[%clk 0:02:10.4]} 28.
Qh3 {[%clk 0:02:18.2]} 28... Nf4 {[%clk 0:02:06]} 29. Qg3 {[%clk 0:02:17.4]}
29... Qf6 {[%clk 0:02:00.4]} 30. Ng4 {[%clk 0:02:03.1]} 30... Qg6 {[%clk
0:01:56.8]} 31. Qh4 {[%clk 0:01:59.4]} 31... Qg5 {[%clk 0:01:50.2]} 32. Qf2
{[%clk 0:01:58.4]} 32... Nf6 {[%clk 0:01:44.4]} 33. Ne3 {[%clk 0:01:55.3]} 33...
Bc8 {[%clk 0:01:41.7]} 34. Bc4 {[%clk 0:01:50.1]} 34... Be6 {[%clk 0:01:38.6]}
35. b3 {[%clk 0:01:47.3]} 35... Rg8 {[%clk 0:01:36.7]} 36. Nb5 {[%clk
0:01:37.9]} 36... Bxc4 {[%clk 0:01:27.4]} 37. bxc4 {[%clk 0:01:38.8]} 37... Qh5
{[%clk 0:01:15.9]} 38. Nxd6 {[%clk 0:01:32.3]} 38... Bg5 {[%clk 0:01:13.6]} 39.
Ndf5 {[%clk 0:01:28.7]} 39... Nd3 {[%clk 0:01:08.3]} 40. Rxd3 {[%clk 0:01:17.1]}
40... Rxd3 {[%clk 0:01:09.2]} 41. c5 {[%clk 0:01:03.6]} 41... Bxe3 {[%clk
0:01:06.5]} 42. Nxe3 {[%clk 0:01:03.6]} 42... Rc3 {[%clk 0:01:02.5]} 43. h3
{[%clk 0:00:46.5]} 43... Qg5 {[%clk 0:01:01.2]} 44. Nf5 {[%clk 0:00:43.6]} 44...
Rc1 {[%clk 0:00:57.4]} 45. Rxc1 {[%clk 0:00:41.2]} 45... Qxc1+ {[%clk
0:00:57.8]} 46. Kh2 {[%clk 0:00:41.9]} 46... Qf4+ {[%clk 0:00:57.8]} 47. Kg1
{[%clk 0:00:40.6]} 47... Nh5 {[%clk 0:00:52.3]} 48. g4 {[%clk 0:00:38.2]} 48...
Qg5 {[%clk 0:00:35.9]} 49. c6 {[%clk 0:00:35.1]} 49... Ng7 {[%clk 0:00:33.9]}
50. Ne3 {[%clk 0:00:26.1]} 50... Rc8 {[%clk 0:00:31.9]} 51. h4 {[%clk
0:00:23.6]} 51... Qf4 {[%clk 0:00:30]} 52. Nd5 {[%clk 0:00:14.8]} 52... Qc1+
{[%clk 0:00:30]} 53. Kg2 {[%clk 0:00:15.5]} 53... Rxc6 {[%clk 0:00:30.3]} 54.
Qa7 {[%clk 0:00:05.6]} 54... Rc2+ {[%clk 0:00:28.8]} 55. Kh3 {[%clk 0:00:06.1]}
55... Qh1+ {[%clk 0:00:28.5]} 56. Kg3 {[%clk 0:00:06.8]} 56... Rg2# {[%clk
0:00:28.7]} 0-1

[Event "Late-Titled-Tuesday-Blitz-July-09-2024"]
[Site "Chess.com"]
[Date "2024.07.09"]
[Round "4"]
[White "APOKALIPSA13"]
[Black "schondeln"]
[Result "0-1"]
[WhiteElo "2107"]
[BlackElo "2355"]
[TimeControl "180+1"]
[EndTime "14:39:23 PDT"]
[Termination "schondeln won by resignation"]

1. e4 {[%clk 0:02:54]} 1... d5 {[%clk 0:02:59.2]} 2. exd5 {[%clk 0:02:53.9]}
2... Qxd5 {[%clk 0:03:00.1]} 3. Nf3 {[%clk 0:02:54.2]} 3... Bg4 {[%clk
0:02:59.3]} 4. Nc3 {[%clk 0:02:55.1]} 4... Qd7 {[%clk 0:02:36.4]} 5. Be2 {[%clk
0:02:50.4]} 5... Nc6 {[%clk 0:02:35.7]} 6. O-O {[%clk 0:02:46.1]} 6... O-O-O
{[%clk 0:02:35.2]} 7. d3 {[%clk 0:02:38.2]} 7... Nf6 {[%clk 0:02:35.1]} 8. h3
{[%clk 0:02:30.1]} 8... Bxf3 {[%clk 0:02:34.1]} 9. Bxf3 {[%clk 0:02:31]} 9...
Nd4 {[%clk 0:02:34.3]} 10. Re1 {[%clk 0:02:03.3]} 10... e6 {[%clk 0:02:31.5]}
11. Ne4 {[%clk 0:02:00.5]} 11... Nxf3+ {[%clk 0:02:29.2]} 12. Qxf3 {[%clk
0:01:59.3]} 12... Be7 {[%clk 0:02:21.1]} 13. Be3 {[%clk 0:01:55]} 13... Kb8
{[%clk 0:02:16.9]} 14. b4 {[%clk 0:01:37.6]} 14... Nxe4 {[%clk 0:02:12.5]} 15.
Qxe4 {[%clk 0:01:35.9]} 15... Qd5 {[%clk 0:02:03.1]} 16. a3 {[%clk 0:01:30.5]}
16... Bf6 {[%clk 0:02:00.4]} 17. Rab1 {[%clk 0:01:24.5]} 17... Rd7 {[%clk
0:01:56.9]} 18. Rb3 {[%clk 0:01:12.8]} 18... Rhd8 {[%clk 0:01:54.6]} 19. c4
{[%clk 0:01:08.3]} 19... Qxe4 {[%clk 0:01:50.4]} 20. dxe4 {[%clk 0:01:09.2]}
20... Rd3 {[%clk 0:01:50.1]} 21. Reb1 {[%clk 0:01:04.1]} 21... a6 {[%clk
0:01:31.1]} 22. g3 {[%clk 0:01:00.2]} 22... Rxb3 {[%clk 0:01:24.3]} 23. Rxb3
{[%clk 0:00:59.7]} 23... Rd1+ {[%clk 0:01:24.8]} 24. Kg2 {[%clk 0:00:59.6]}
24... Kc8 {[%clk 0:01:25]} 25. h4 {[%clk 0:00:44]} 25... Bd4 {[%clk 0:01:24.2]}
26. Kf3 {[%clk 0:00:40.8]} 26... Bxe3 {[%clk 0:01:22.3]} 27. Kxe3 {[%clk
0:00:40.4]} 27... h5 {[%clk 0:01:22.4]} 28. Rd3 {[%clk 0:00:36.5]} 28... Rc1
{[%clk 0:01:04.6]} 29. c5 {[%clk 0:00:34.8]} 29... e5 {[%clk 0:01:01.4]} 30. Rd5
{[%clk 0:00:32.4]} 30... f6 {[%clk 0:01:00.3]} 31. Rd3 {[%clk 0:00:32.1]} 31...
Rc4 {[%clk 0:00:53.3]} 32. Rd2 {[%clk 0:00:29.6]} 32... a5 {[%clk 0:00:51.6]}
33. bxa5 {[%clk 0:00:21.9]} 33... Rxc5 {[%clk 0:00:50.2]} 34. Rd5 {[%clk
0:00:21.9]} 34... Rc3+ {[%clk 0:00:49.5]} 35. Rd3 {[%clk 0:00:21.7]} 35... Rxd3+
{[%clk 0:00:47.5]} 36. Kxd3 {[%clk 0:00:22.6]} 36... Kd7 {[%clk 0:00:47.8]} 37.
Kc4 {[%clk 0:00:22.4]} 37... Kc6 {[%clk 0:00:47.1]} 38. Kb4 {[%clk 0:00:22.1]}
38... Kd6 {[%clk 0:00:45.7]} 39. Kc4 {[%clk 0:00:21.8]} 39... g6 {[%clk
0:00:34.6]} 40. Kb4 {[%clk 0:00:20.5]} 40... f5 {[%clk 0:00:33.9]} 41. f3 {[%clk
0:00:20.7]} 41... f4 {[%clk 0:00:28.2]} 42. gxf4 {[%clk 0:00:20.7]} 42... exf4
{[%clk 0:00:28.8]} 43. Kc4 {[%clk 0:00:20.7]} 43... g5 {[%clk 0:00:29.2]} 44.
hxg5 {[%clk 0:00:19.4]} 44... h4 {[%clk 0:00:29.6]} 45. g6 {[%clk 0:00:19.8]}
45... Ke6 {[%clk 0:00:29.6]} 46. e5 {[%clk 0:00:19.4]} 46... h3 {[%clk
0:00:28.9]} 47. a6 {[%clk 0:00:17.3]} 47... bxa6 {[%clk 0:00:28.6]} 48. Kc5
{[%clk 0:00:14.8]} 48... h2 {[%clk 0:00:28]} 49. Kc6 {[%clk 0:00:15.7]} 49...
h1=Q {[%clk 0:00:28]} 50. Kxc7 {[%clk 0:00:15.1]} 50... Qxf3 {[%clk 0:00:27.8]}
51. g7 {[%clk 0:00:14.5]} 51... Kf7 {[%clk 0:00:25.2]} 52. e6+ {[%clk
0:00:13.5]} 52... Kxg7 {[%clk 0:00:25.3]} 53. Kc8 {[%clk 0:00:13.7]} 53... Qc6+
{[%clk 0:00:23.7]} 0-1

[Event "Late-Titled-Tuesday-Blitz-July-09-2024"]
[Site "Chess.com"]
[Date "2024.07.09"]
[Round "4"]
[White "Emp3rador"]
[Black "ChessLover0108"]
[Result "0-1"]
[WhiteElo "2615"]
[BlackElo "2929"]
[TimeControl "180+1"]
[EndTime "14:39:26 PDT"]
[Termination "ChessLover0108 won by resignation"]

1. e4 {[%clk 0:03:00.9]} 1... c5 {[%clk 0:02:59.9]} 2. Nf3 {[%clk 0:03:00.8]}
2... d6 {[%clk 0:03:00.5]} 3. Bb5+ {[%clk 0:03:00.1]} 3... Nc6 {[%clk
0:02:59.2]} 4. d4 {[%clk 0:02:58]} 4... cxd4 {[%clk 0:02:59.2]} 5. Qxd4 {[%clk
0:02:58.2]} 5... Bd7 {[%clk 0:02:54.6]} 6. Bxc6 {[%clk 0:02:57.6]} 6... bxc6
{[%clk 0:02:54.6]} 7. c4 {[%clk 0:02:55.6]} 7... e5 {[%clk 0:02:53.8]} 8. Qd3
{[%clk 0:02:55.4]} 8... Be6 {[%clk 0:02:51.1]} 9. O-O {[%clk 0:02:54.9]} 9... f6
{[%clk 0:02:48.7]} 10. Rd1 {[%clk 0:02:52.5]} 10... Ne7 {[%clk 0:02:41]} 11. b3
{[%clk 0:02:09.1]} 11... d5 {[%clk 0:02:07.8]} 12. cxd5 {[%clk 0:02:00.3]} 12...
cxd5 {[%clk 0:02:08.7]} 13. exd5 {[%clk 0:02:00.5]} 13... Nxd5 {[%clk
0:02:09.3]} 14. Bb2 {[%clk 0:01:31.5]} 14... Qb6 {[%clk 0:01:58.8]} 15. Nc3
{[%clk 0:01:26.2]} 15... Nxc3 {[%clk 0:01:43]} 16. Qxc3 {[%clk 0:01:22.2]} 16...
Bb4 {[%clk 0:01:43.4]} 17. Qd3 {[%clk 0:01:07.6]} 17... O-O {[%clk 0:01:42]} 18.
Qe4 {[%clk 0:01:05.9]} 18... Bc5 {[%clk 0:01:37]} 19. Qe2 {[%clk 0:00:49.4]}
19... Rad8 {[%clk 0:01:32.4]} 20. Nd2 {[%clk 0:00:47.2]} 20... Be7 {[%clk
0:00:39.4]} 21. Ne4 {[%clk 0:00:39.6]} 21... h6 {[%clk 0:00:34.5]} 22. Rxd8
{[%clk 0:00:37.9]} 22... Rxd8 {[%clk 0:00:35.4]} 23. Rd1 {[%clk 0:00:37.7]}
23... Rxd1+ {[%clk 0:00:33.5]} 24. Qxd1 {[%clk 0:00:37.9]} 24... Qa6 {[%clk
0:00:34.2]} 25. Nc3 {[%clk 0:00:33.2]} 25... Bc5 {[%clk 0:00:32.2]} 26. Qd8+
{[%clk 0:00:19.1]} 26... Kh7 {[%clk 0:00:31.2]} 27. h3 {[%clk 0:00:16.5]} 27...
Bd4 {[%clk 0:00:29.1]} 28. Qc7 {[%clk 0:00:10.9]} 28... Qd3 {[%clk 0:00:27.2]}
29. Na4 {[%clk 0:00:08.8]} 29... Bxb2 {[%clk 0:00:24.9]} 30. Nxb2 {[%clk
0:00:08.6]} 30... Qb1+ {[%clk 0:00:25]} 31. Kh2 {[%clk 0:00:08.6]} 31... Qxb2
{[%clk 0:00:25.6]} 32. Qxa7 {[%clk 0:00:07.7]} 32... Qd4 {[%clk 0:00:18.7]} 33.
Qxd4 {[%clk 0:00:05.1]} 33... exd4 {[%clk 0:00:19.6]} 34. Kg3 {[%clk 0:00:05.6]}
34... Bd5 {[%clk 0:00:19.4]} 35. f3 {[%clk 0:00:06]} 35... Kg6 {[%clk
0:00:19.8]} 36. Kf2 {[%clk 0:00:06.5]} 36... Kf5 {[%clk 0:00:20.7]} 37. Ke2
{[%clk 0:00:06.5]} 37... Ke5 {[%clk 0:00:20]} 38. Kd3 {[%clk 0:00:07]} 38... Bg8
{[%clk 0:00:19.4]} 39. f4+ {[%clk 0:00:05]} 39... Kd5 {[%clk 0:00:18.1]} 40. f5
{[%clk 0:00:04.9]} 40... Bf7 {[%clk 0:00:17.9]} 41. g4 {[%clk 0:00:04.6]} 41...
Be8 {[%clk 0:00:18.8]} 42. a4 {[%clk 0:00:04.3]} 42... Bc6 {[%clk 0:00:17.2]}
43. Kd2 {[%clk 0:00:01.4]} 43... Ke4 {[%clk 0:00:16.7]} 44. Ke2 {[%clk 0:00:02]}
44... d3+ {[%clk 0:00:17]} 45. Kd2 {[%clk 0:00:02.5]} 45... Kd4 {[%clk
0:00:17.9]} 46. a5 {[%clk 0:00:02]} 46... Bb5 {[%clk 0:00:18.1]} 47. b4 {[%clk
0:00:02.5]} 47... Kc4 {[%clk 0:00:18.8]} 48. h4 {[%clk 0:00:03]} 48... Kxb4
{[%clk 0:00:18.9]} 49. g5 {[%clk 0:00:03.6]} 49... hxg5 {[%clk 0:00:18.8]} 0-1

[Event "Late-Titled-Tuesday-Blitz-July-09-2024"]
[Site "Chess.com"]
[Date "2024.07.09"]
[Round "4"]
[White "FM_Kappeler"]
[Black "Chessmatus"]
[Result "1/2-1/2"]
[WhiteElo "2322"]
[BlackElo "2522"]
[TimeControl "180+1"]
[EndTime "14:39:27 PDT"]
[Termination "Game drawn by repetition"]

1. d4 {[%clk 0:03:00.9]} 1... Nf6 {[%clk 0:02:59.8]} 2. c4 {[%clk 0:03:01]} 2...
g6 {[%clk 0:03:00.3]} 3. Nc3 {[%clk 0:02:58.2]} 3... d5 {[%clk 0:03:00.5]} 4.
cxd5 {[%clk 0:02:58.2]} 4... Nxd5 {[%clk 0:03:01.4]} 5. e4 {[%clk 0:02:58.3]}
5... Nxc3 {[%clk 0:03:02.1]} 6. bxc3 {[%clk 0:02:58.3]} 6... Bg7 {[%clk
0:03:02.8]} 7. Nf3 {[%clk 0:02:58.5]} 7... c5 {[%clk 0:03:02.9]} 8. Rb1 {[%clk
0:02:58.4]} 8... O-O {[%clk 0:03:01.5]} 9. h3 {[%clk 0:02:57.9]} 9... Nc6 {[%clk
0:02:56.3]} 10. d5 {[%clk 0:02:57.6]} 10... Ne5 {[%clk 0:02:55.9]} 11. Nxe5
{[%clk 0:02:55.5]} 11... Bxe5 {[%clk 0:02:56.8]} 12. Qc2 {[%clk 0:02:55.1]}
12... e6 {[%clk 0:02:50]} 13. c4 {[%clk 0:02:41.9]} 13... exd5 {[%clk 0:02:46]}
14. exd5 {[%clk 0:02:41.9]} 14... Re8 {[%clk 0:02:38.7]} 15. Be3 {[%clk
0:02:16]} 15... Qa5+ {[%clk 0:02:37.9]} 16. Bd2 {[%clk 0:02:01.7]} 16... Bf5
{[%clk 0:02:26.8]} 17. Bd3 {[%clk 0:01:58.1]} 17... Bf4+ {[%clk 0:01:51.4]} 18.
Kd1 {[%clk 0:01:56.5]} 18... Bxd2 {[%clk 0:01:48.3]} 19. Qxd2 {[%clk 0:01:56.5]}
19... Qa4+ {[%clk 0:01:45.1]} 20. Qc2 {[%clk 0:01:29.9]} 20... Qxc2+ {[%clk
0:01:39.1]} 21. Bxc2 {[%clk 0:01:29.9]} 21... Bxc2+ {[%clk 0:01:34.9]} 22. Kxc2
{[%clk 0:01:29.5]} 22... Re2+ {[%clk 0:01:35.8]} 23. Kd3 {[%clk 0:01:24.7]}
23... Rae8 {[%clk 0:01:01.3]} 24. Rxb7 {[%clk 0:01:16.8]} 24... Rxa2 {[%clk
0:01:01.4]} 25. Rc7 {[%clk 0:00:57.8]} 25... Ree2 {[%clk 0:00:51.1]} 26. Rxc5
{[%clk 0:00:56.6]} 26... Rxf2 {[%clk 0:00:51.1]} 27. Rb1 {[%clk 0:00:49.7]}
27... a5 {[%clk 0:00:20.1]} 28. Rc8+ {[%clk 0:00:46.4]} 28... Kg7 {[%clk
0:00:19.9]} 29. c5 {[%clk 0:00:42.1]} 29... Rfd2+ {[%clk 0:00:17.8]} 30. Ke4
{[%clk 0:00:41.5]} 30... Ra4+ {[%clk 0:00:12.6]} 31. Ke5 {[%clk 0:00:40.5]}
31... f6+ {[%clk 0:00:11.8]} 32. Ke6 {[%clk 0:00:39.8]} 32... Re4+ {[%clk
0:00:12.5]} 33. Kd6 {[%clk 0:00:29.9]} 33... Re5 {[%clk 0:00:12.5]} 34. c6
{[%clk 0:00:27.4]} 34... Rexd5+ {[%clk 0:00:11.1]} 35. Kc7 {[%clk 0:00:25.5]}
35... Rc2 {[%clk 0:00:10.8]} 36. Ra8 {[%clk 0:00:18.3]} 36... Rdc5 {[%clk
0:00:10.8]} 37. Rb6 {[%clk 0:00:17.8]} 37... Rxg2 {[%clk 0:00:08.7]} 38. Kd6
{[%clk 0:00:17]} 38... Rgc2 {[%clk 0:00:08.9]} 39. Rb7+ {[%clk 0:00:16]} 39...
Kh6 {[%clk 0:00:09.4]} 40. c7 {[%clk 0:00:16.3]} 40... f5 {[%clk 0:00:09.5]} 41.
Kd7 {[%clk 0:00:15]} 41... Rd2+ {[%clk 0:00:09.5]} 42. Ke7 {[%clk 0:00:14.6]}
42... Rdc2 {[%clk 0:00:08.8]} 43. Kd7 {[%clk 0:00:14.2]} 43... Rd2+ {[%clk
0:00:06.1]} 44. Ke7 {[%clk 0:00:14.4]} 44... Re2+ {[%clk 0:00:04]} 45. Kd7
{[%clk 0:00:14.3]} 45... Rd2+ {[%clk 0:00:03.3]} 1/2-1/2

[Event "Late-Titled-Tuesday-Blitz-July-09-2024"]
[Site "Chess.com"]
[Date "2024.07.09"]
[Round "4"]
[White "saikrishnaReturns"]
[Black "subham777"]
[Result "1-0"]
[WhiteElo "2778"]
[BlackElo "2560"]
[TimeControl "180+1"]
[EndTime "14:39:33 PDT"]
[Termination "saikrishnaReturns won by resignation"]

1. Nf3 {[%clk 0:03:00.9]} 1... d5 {[%clk 0:02:58.2]} 2. g3 {[%clk 0:03:01]} 2...
Nf6 {[%clk 0:02:58.4]} 3. Bg2 {[%clk 0:03:01.4]} 3... e6 {[%clk 0:02:59]} 4. O-O
{[%clk 0:03:02]} 4... Be7 {[%clk 0:02:59.4]} 5. d3 {[%clk 0:03:02.1]} 5... O-O
{[%clk 0:02:59.8]} 6. Nbd2 {[%clk 0:03:02.6]} 6... c5 {[%clk 0:02:59.7]} 7. e4
{[%clk 0:03:03.2]} 7... dxe4 {[%clk 0:03:00.3]} 8. dxe4 {[%clk 0:03:04]} 8...
Nc6 {[%clk 0:03:00]} 9. Re1 {[%clk 0:03:03.1]} 9... Qc7 {[%clk 0:02:57.6]} 10.
c3 {[%clk 0:03:01.1]} 10... e5 {[%clk 0:02:50.6]} 11. Nh4 {[%clk 0:03:00.6]}
11... Bg4 {[%clk 0:02:46.6]} 12. Qc2 {[%clk 0:02:55.5]} 12... Rad8 {[%clk
0:02:45.3]} 13. Nc4 {[%clk 0:02:55.3]} 13... Be6 {[%clk 0:02:39.4]} 14. Ne3
{[%clk 0:02:54.5]} 14... g6 {[%clk 0:02:38.1]} 15. Qe2 {[%clk 0:02:34.9]} 15...
Rfe8 {[%clk 0:02:11.2]} 16. Bf1 {[%clk 0:02:26.2]} 16... a6 {[%clk 0:02:03.3]}
17. Qc2 {[%clk 0:02:13.3]} 17... b5 {[%clk 0:01:57.4]} 18. Nhg2 {[%clk 0:02:13]}
18... Ng4 {[%clk 0:01:50.6]} 19. h3 {[%clk 0:02:02.9]} 19... Nf6 {[%clk
0:01:41.3]} 20. g4 {[%clk 0:01:56.8]} 20... Qb7 {[%clk 0:01:27.4]} 21. f4 {[%clk
0:01:47.5]} 21... exf4 {[%clk 0:01:25.1]} 22. Nxf4 {[%clk 0:01:48.4]} 22... Bd6
{[%clk 0:01:15.3]} 23. Nxe6 {[%clk 0:01:40.6]} 23... Rxe6 {[%clk 0:01:16.2]} 24.
Bg2 {[%clk 0:01:41]} 24... Rde8 {[%clk 0:01:08.8]} 25. Rd1 {[%clk 0:01:38.6]}
25... Bb8 {[%clk 0:01:04.6]} 26. Nd5 {[%clk 0:01:37.9]} 26... Nxd5 {[%clk
0:00:39.5]} 27. exd5 {[%clk 0:01:38.8]} 27... Re2 {[%clk 0:00:39.5]} 28. Qd3
{[%clk 0:01:11.5]} 28... Na5 {[%clk 0:00:30.8]} 29. Qf3 {[%clk 0:00:59.9]} 29...
Nc4 {[%clk 0:00:20.6]} 30. b3 {[%clk 0:00:56.4]} 30... Nd6 {[%clk 0:00:18.9]}
31. Bh6 {[%clk 0:00:50.2]} 31... Qe7 {[%clk 0:00:14.3]} 32. Rf1 {[%clk
0:00:42.8]} 32... c4 {[%clk 0:00:10.1]} 33. b4 {[%clk 0:00:36.2]} 33... Qe5
{[%clk 0:00:08.8]} 34. Bf4 {[%clk 0:00:32.2]} 34... Qe7 {[%clk 0:00:08.8]} 35.
a4 {[%clk 0:00:28.7]} 35... f6 {[%clk 0:00:08.2]} 36. axb5 {[%clk 0:00:26.9]}
36... axb5 {[%clk 0:00:09.1]} 37. Ra6 {[%clk 0:00:26.5]} 37... g5 {[%clk
0:00:09]} 38. Bxd6 {[%clk 0:00:23.7]} 38... Bxd6 {[%clk 0:00:08.8]} 39. Qxf6
{[%clk 0:00:24.1]} 39... Qxf6 {[%clk 0:00:05.4]} 40. Rxf6 {[%clk 0:00:25]} 40...
Be5 {[%clk 0:00:04.6]} 41. Rf3 {[%clk 0:00:21.5]} 41... Re1+ {[%clk 0:00:02.6]}
42. Bf1 {[%clk 0:00:20.4]} 42... Bf4 {[%clk 0:00:03.2]} 43. Rb6 {[%clk
0:00:18.3]} 43... Rd1 {[%clk 0:00:02.6]} 44. Rxb5 {[%clk 0:00:18.1]} 44... Ree1
{[%clk 0:00:02.8]} 45. Rc5 {[%clk 0:00:16.4]} 45... Be3+ {[%clk 0:00:02.9]} 46.
Kg2 {[%clk 0:00:16.6]} 46... Bxc5 {[%clk 0:00:02.7]} 47. bxc5 {[%clk 0:00:17.5]}
47... Rd2+ {[%clk 0:00:03]} 48. Rf2 {[%clk 0:00:16.5]} 48... Rxd5 {[%clk
0:00:02.8]} 49. Bxc4 {[%clk 0:00:16.1]} 49... Re5 {[%clk 0:00:02.4]} 50. Rf5
{[%clk 0:00:14.5]} 50... Kg7 {[%clk 0:00:01.2]} 51. Bxd5 {[%clk 0:00:14.8]}
51... Re2+ {[%clk 0:00:01.6]} 52. Kf3 {[%clk 0:00:15.3]} 52... Re3+ {[%clk
0:00:02.5]} 53. Kxe3 {[%clk 0:00:15.2]} 1-0

[Event "Late-Titled-Tuesday-Blitz-July-09-2024"]
[Site "Chess.com"]
[Date "2024.07.09"]
[Round "4"]
[White "yaguigor"]
[Black "Seochesspie"]
[Result "0-1"]
[WhiteElo "2620"]
[BlackElo "2943"]
[TimeControl "180+1"]
[EndTime "14:39:36 PDT"]
[Termination "Seochesspie won on time"]

1. e4 {[%clk 0:03:00.9]} 1... c6 {[%clk 0:02:59.7]} 2. d4 {[%clk 0:03:00.3]}
2... d5 {[%clk 0:03:00.6]} 3. e5 {[%clk 0:03:00.5]} 3... c5 {[%clk 0:02:59.9]}
4. dxc5 {[%clk 0:02:59.9]} 4... e6 {[%clk 0:03:00]} 5. Nf3 {[%clk 0:02:58.1]}
5... Bxc5 {[%clk 0:02:57.5]} 6. a3 {[%clk 0:02:58.6]} 6... Nc6 {[%clk
0:02:56.5]} 7. b4 {[%clk 0:02:57.8]} 7... Bb6 {[%clk 0:02:54.9]} 8. Bb2 {[%clk
0:02:55.9]} 8... Nge7 {[%clk 0:02:55]} 9. Nbd2 {[%clk 0:02:53.8]} 9... Ng6
{[%clk 0:02:54]} 10. Bd3 {[%clk 0:02:38.3]} 10... Bc7 {[%clk 0:02:53.7]} 11.
Bxg6 {[%clk 0:02:32.5]} 11... fxg6 {[%clk 0:02:52.2]} 12. O-O {[%clk 0:02:25.8]}
12... O-O {[%clk 0:02:49.9]} 13. c4 {[%clk 0:02:24.9]} 13... g5 {[%clk
0:02:44.5]} 14. b5 {[%clk 0:02:24.2]} 14... Na5 {[%clk 0:02:41.4]} 15. cxd5
{[%clk 0:02:23.9]} 15... Qxd5 {[%clk 0:02:35.7]} 16. Nxg5 {[%clk 0:02:21.9]}
16... h6 {[%clk 0:02:22.3]} 17. Ngf3 {[%clk 0:02:07.8]} 17... Qxb5 {[%clk
0:02:20.4]} 18. Qc2 {[%clk 0:02:04.3]} 18... Nc6 {[%clk 0:02:17]} 19. a4 {[%clk
0:01:43.3]} 19... Qd5 {[%clk 0:02:11.1]} 20. Rad1 {[%clk 0:01:40.5]} 20... Qd8
{[%clk 0:02:01.7]} 21. Nc4 {[%clk 0:01:37.9]} 21... Qe8 {[%clk 0:02:00.1]} 22.
Ba3 {[%clk 0:01:32.4]} 22... Rf4 {[%clk 0:01:52.6]} 23. Bd6 {[%clk 0:01:25.3]}
23... Bd8 {[%clk 0:01:49.9]} 24. Nfd2 {[%clk 0:01:13.9]} 24... b6 {[%clk
0:01:43.2]} 25. g3 {[%clk 0:01:13.7]} 25... Rd4 {[%clk 0:01:35.7]} 26. Nb3
{[%clk 0:01:04.6]} 26... Rxd1 {[%clk 0:01:35.3]} 27. Rxd1 {[%clk 0:01:05.5]}
27... Bb7 {[%clk 0:01:30.2]} 28. Ba3 {[%clk 0:01:05.2]} 28... Nb4 {[%clk
0:00:59.5]} 29. Bxb4 {[%clk 0:00:58.1]} 29... Qc6 {[%clk 0:00:59.8]} 30. Kf1
{[%clk 0:00:44.1]} 30... Qh1+ {[%clk 0:00:53.4]} 31. Ke2 {[%clk 0:00:44.1]}
31... Bf3+ {[%clk 0:00:53.9]} 32. Kd2 {[%clk 0:00:43.7]} 32... Bxd1 {[%clk
0:00:54.4]} 33. Qxd1 {[%clk 0:00:42.5]} 33... Qd5+ {[%clk 0:00:54.6]} 34. Ke1
{[%clk 0:00:29.6]} 34... Qxc4 {[%clk 0:00:54.3]} 35. Bd6 {[%clk 0:00:26.8]}
35... Qxa4 {[%clk 0:00:51.1]} 36. Qd3 {[%clk 0:00:25.4]} 36... Rc8 {[%clk
0:00:45.7]} 37. Nd4 {[%clk 0:00:23.7]} 37... Qc4 {[%clk 0:00:37.7]} 38. Qg6
{[%clk 0:00:18.3]} 38... b5 {[%clk 0:00:30.6]} 39. Qxe6+ {[%clk 0:00:15.2]}
39... Qxe6 {[%clk 0:00:25.6]} 40. Nxe6 {[%clk 0:00:16.1]} 40... Bb6 {[%clk
0:00:21.8]} 41. f4 {[%clk 0:00:14.8]} 41... a5 {[%clk 0:00:21.2]} 42. f5 {[%clk
0:00:14]} 42... b4 {[%clk 0:00:20.3]} 43. Kd2 {[%clk 0:00:09]} 43... b3 {[%clk
0:00:16.2]} 44. Ba3 {[%clk 0:00:07.8]} 44... a4 {[%clk 0:00:16.1]} 45. g4 {[%clk
0:00:06.1]} 45... Ba5+ {[%clk 0:00:12]} 46. Kd3 {[%clk 0:00:05.6]} 46... Bc3
{[%clk 0:00:12.3]} 47. Nd4 {[%clk 0:00:01.5]} 47... b2 {[%clk 0:00:11.2]} 0-1